[Event "Titled Tuesday Blitz June 28 Late 2022"]
[White "Salem, A.R. Saleh"]
[Black "Steinberg, Nitzan"]
[WhiteFideId "9301348"]
[BlackFideId "2801795"]
[WhiteElo "2679"]
[BlackElo "2471"]
[Result "1-0"]
[Round "10"]
[TimeControl "180+1"]
[Date "2022.06.28"]
[WhiteClock "0:00:10"]
[BlackClock "0:00:04"]

1. d4 {[%clk 0:03:00]}  d5 {[%clk 0:02:59]} 2. c4 {[%clk 0:03:01]}  c6 {[%clk 0:03:00]} 3. Nc3 {[%clk 0:03:02]}  Nf6 {[%clk 0:03:00]} 4. Nf3 {[%clk 0:03:03]}  e6 {[%clk 0:03:01]} 5. Bg5 {[%clk 0:03:01]}  Nbd7 {[%clk 0:03:01]} 6. e3 {[%clk 0:03:01]}  Qa5 {[%clk 0:03:02]} 7. cxd5 {[%clk 0:02:59]}  exd5 {[%clk 0:03:02]} 8. Bd3 {[%clk 0:02:58]}  Ne4 {[%clk 0:03:01]} 9. O-O {[%clk 0:02:59]}  Nxg5 {[%clk 0:03:00]} 10. Nxg5 {[%clk 0:03:00]}  Be7 {[%clk 0:02:58]} 11. f4 {[%clk 0:02:57]}  Qd8 {[%clk 0:02:57]} 12. Nf3 {[%clk 0:02:55]}  O-O {[%clk 0:02:53]} 13. Qc2 {[%clk 0:02:52]}  Nf6 {[%clk 0:02:51]} 14. Ne5 {[%clk 0:02:49]}  c5 {[%clk 0:02:48]} 15. Rf3 {[%clk 0:02:48]}  cxd4 {[%clk 0:02:34]} 16. exd4 {[%clk 0:02:48]}  Qb6 {[%clk 0:02:32]} 17. Kh1 {[%clk 0:02:46]}  Be6 {[%clk 0:02:05]} 18. Re1 {[%clk 0:02:28]}  Rfe8 {[%clk 0:01:56]} 19. Qf2 {[%clk 0:02:25]}  Bb4 {[%clk 0:01:38]} 20. f5 {[%clk 0:02:21]}  Bd7 {[%clk 0:01:24]} 21. g4 {[%clk 0:02:07]}  Nxg4 {[%clk 0:01:04]} 22. Nxg4 {[%clk 0:02:01]}  Rxe1+ {[%clk 0:01:04]} 23. Qxe1 {[%clk 0:02:02]}  Qxd4 {[%clk 0:01:04]} 24. Qg3 {[%clk 0:01:56]}  Re8 {[%clk 0:01:03]} 25. Rf4 {[%clk 0:01:06]}  Re1+ {[%clk 0:00:53]} 26. Bf1 {[%clk 0:01:07]}  Qd2 {[%clk 0:00:42]} 27. Nf6+ {[%clk 0:00:53]}  Kh8 {[%clk 0:00:42]} 28. Nxd7 {[%clk 0:00:37]}  Bd6 {[%clk 0:00:41]} 29. Qh4 {[%clk 0:00:32]}  f6 {[%clk 0:00:12]} 30. Rf2 {[%clk 0:00:29]}  Qc1 {[%clk 0:00:12]} 31. Kg2 {[%clk 0:00:24]}  d4 {[%clk 0:00:07]} 32. Re2 {[%clk 0:00:21]}  Rxe2+ {[%clk 0:00:03]} 33. Nxe2 {[%clk 0:00:22]}  Qc6+ {[%clk 0:00:02]} 34. Kf2 {[%clk 0:00:22]}  Qxd7 {[%clk 0:00:03]} 35. Qxd4 {[%clk 0:00:22]}  Qc7 {[%clk 0:00:03]} 36. Qe4 {[%clk 0:00:20]}  Bc5+ {[%clk 0:00:02]} 37. Kg2 {[%clk 0:00:20]}  h6 {[%clk 0:00:02]} 38. Nf4 {[%clk 0:00:21]}  Bd6 {[%clk 0:00:01]} 39. Ng6+ {[%clk 0:00:20]}  Kh7 {[%clk 0:00:01]} 40. Bc4 {[%clk 0:00:20]}  Qc5 {[%clk 0:00:01]} 41. Qe6 {[%clk 0:00:13]}  Qc6+ {[%clk 0:00:01]} 42. Qd5 {[%clk 0:00:09]}  Qxd5+ {[%clk 0:00:01]} 43. Bxd5 {[%clk 0:00:10]}  h5 {[%clk 0:00:02]} 44. Bxb7 {[%clk 0:00:10]}  Kh6 {[%clk 0:00:02]} 45. h4 {[%clk 0:00:11]}  Bc5 {[%clk 0:00:03]} 46. b3 {[%clk 0:00:09]}  a5 {[%clk 0:00:03]} 47. Kf3 {[%clk 0:00:10]}  Bd4 {[%clk 0:00:04]} 48. Bd5 {[%clk 0:00:10]}  Bc3 {[%clk 0:00:04]} 49. Bf7 {[%clk 0:00:09]}  Be1 {[%clk 0:00:04]} 50. Kg2 {[%clk 0:00:09]}  Bd2 {[%clk 0:00:04]} 51. Kh3 {[%clk 0:00:09]}  Be1 {[%clk 0:00:04]} 52. Ne7 {[%clk 0:00:10]}  Bc3 {[%clk 0:00:04]} 53. Bg6 {[%clk 0:00:10]} 1-0


[Site "https://www.chess.com"]

[Event "Titled Tuesday Blitz June 28 Late 2022"]
[White "Shapiro, Daniel"]
[Black "Vlassov, Nikolai"]
[WhiteFideId "2001780"]
[BlackFideId "4103360"]
[WhiteElo "2286"]
[BlackElo "2407"]
[Result "0-1"]
[Round "10"]
[TimeControl "180+1"]
[Date "2022.06.29"]
[WhiteClock "0:00:09"]
[BlackClock "0:00:48"]

1. d4 {[%clk 0:03:00]}  Nf6 {[%clk 0:02:59]} 2. c4 {[%clk 0:03:00]}  Nc6 {[%clk 0:02:59]} 3. Nf3 {[%clk 0:02:58]}  e6 {[%clk 0:02:59]} 4. a3 {[%clk 0:02:55]}  d5 {[%clk 0:02:58]} 5. Bg5 {[%clk 0:02:27]}  dxc4 {[%clk 0:02:56]} 6. e3 {[%clk 0:02:28]}  Na5 {[%clk 0:02:55]} 7. Nbd2 {[%clk 0:02:20]}  b5 {[%clk 0:02:54]} 8. a4 {[%clk 0:02:19]}  c6 {[%clk 0:02:54]} 9. b3 {[%clk 0:02:16]}  c3 {[%clk 0:02:49]} 10. Ne4 {[%clk 0:02:15]}  Bb4 {[%clk 0:02:40]} 11. Qc2 {[%clk 0:02:11]}  O-O {[%clk 0:02:25]} 12. axb5 {[%clk 0:01:54]}  cxb5 {[%clk 0:02:20]} 13. Bxb5 {[%clk 0:01:49]}  Bb7 {[%clk 0:02:20]} 14. Bd3 {[%clk 0:01:45]}  Bxe4 {[%clk 0:02:05]} 15. Bxe4 {[%clk 0:01:43]}  Rc8 {[%clk 0:02:02]} 16. Bxf6 {[%clk 0:01:34]}  Qxf6 {[%clk 0:02:02]} 17. Bxh7+ {[%clk 0:01:30]}  Kh8 {[%clk 0:02:02]} 18. Bd3 {[%clk 0:01:30]}  g6 {[%clk 0:02:02]} 19. h4 {[%clk 0:01:24]}  Kg7 {[%clk 0:02:00]} 20. Ra4 {[%clk 0:01:23]}  Nc6 {[%clk 0:01:59]} 21. h5 {[%clk 0:01:17]}  Rh8 {[%clk 0:01:57]} 22. Be4 {[%clk 0:01:15]}  a5 {[%clk 0:01:55]} 23. Ke2 {[%clk 0:01:00]}  Rxh5 {[%clk 0:01:50]} 24. Rxh5 {[%clk 0:01:00]}  gxh5 {[%clk 0:01:43]} 25. Bxc6 {[%clk 0:00:59]}  Rxc6 {[%clk 0:01:37]} 26. Ne5 {[%clk 0:00:58]}  Rc8 {[%clk 0:01:34]} 27. Nd3 {[%clk 0:00:56]}  Rb8 {[%clk 0:01:14]} 28. Ra1 {[%clk 0:00:54]}  Qg6 {[%clk 0:01:11]} 29. Nxb4 {[%clk 0:00:25]}  axb4 {[%clk 0:01:07]} 30. Qxg6+ {[%clk 0:00:22]}  Kxg6 {[%clk 0:01:06]} 31. Kd3 {[%clk 0:00:20]}  h4 {[%clk 0:01:04]} 32. Ra5 {[%clk 0:00:16]}  f5 {[%clk 0:00:59]} 33. Rc5 {[%clk 0:00:15]}  Kf6 {[%clk 0:00:54]} 34. Rc6 {[%clk 0:00:14]}  Ke7 {[%clk 0:00:53]} 35. f3 {[%clk 0:00:15]}  Rg8 {[%clk 0:00:52]} 36. Rb6 {[%clk 0:00:12]}  Rxg2 {[%clk 0:00:48]} 37. Rxb4 {[%clk 0:00:12]}  c2 {[%clk 0:00:48]} 38. Rc4 {[%clk 0:00:09]}  h3 {[%clk 0:00:48]} 0-1


[Site "https://www.chess.com"]

[Event "Titled Tuesday Blitz June 28 Late 2022"]
[White "Silvestre, Christian"]
[Black "Desideri, Ricardo Maruchi"]
[WhiteFideId "30956269"]
[BlackFideId "2110440"]
[WhiteElo "2347"]
[BlackElo "1945"]
[Result "1-0"]
[Round "10"]
[TimeControl "180+1"]
[Date "2022.06.29"]
[WhiteClock "0:00:05"]
[BlackClock "0:00:08"]

1. Nf3 {[%clk 0:00:45]}  c5 {[%clk 0:02:56]} 2. c3 {[%clk 0:00:43]}  Nf6 {[%clk 0:02:55]} 3. d4 {[%clk 0:00:44]}  cxd4 {[%clk 0:02:55]} 4. cxd4 {[%clk 0:00:45]}  g6 {[%clk 0:02:54]} 5. Nc3 {[%clk 0:00:45]}  Bg7 {[%clk 0:02:54]} 6. g3 {[%clk 0:00:45]}  Nc6 {[%clk 0:02:53]} 7. Bg2 {[%clk 0:00:46]}  d5 {[%clk 0:02:53]} 8. O-O {[%clk 0:00:46]}  O-O {[%clk 0:02:52]} 9. Bf4 {[%clk 0:00:46]}  Bf5 {[%clk 0:02:51]} 10. Ne5 {[%clk 0:00:46]}  a6 {[%clk 0:02:46]} 11. Qa4 {[%clk 0:00:44]}  b5 {[%clk 0:02:42]} 12. Nxc6 {[%clk 0:00:42]}  bxa4 {[%clk 0:02:42]} 13. Nxd8 {[%clk 0:00:41]}  Rfxd8 {[%clk 0:02:40]} 14. Nxa4 {[%clk 0:00:41]}  Ne4 {[%clk 0:02:33]} 15. Rfd1 {[%clk 0:00:39]}  g5 {[%clk 0:02:22]} 16. Be3 {[%clk 0:00:37]}  Rab8 {[%clk 0:02:19]} 17. Rac1 {[%clk 0:00:34]}  h6 {[%clk 0:02:10]} 18. b3 {[%clk 0:00:34]}  Kf8 {[%clk 0:02:07]} 19. Nc5 {[%clk 0:00:27]}  Rbc8 {[%clk 0:01:58]} 20. Bxe4 {[%clk 0:00:24]}  Bxe4 {[%clk 0:01:54]} 21. Nxe4 {[%clk 0:00:20]}  dxe4 {[%clk 0:01:53]} 22. Rc4 {[%clk 0:00:15]}  Rb8 {[%clk 0:01:44]} 23. d5 {[%clk 0:00:15]}  Rb5 {[%clk 0:01:42]} 24. Rxe4 {[%clk 0:00:14]}  Rbxd5 {[%clk 0:01:41]} 25. Rxd5 {[%clk 0:00:14]}  Rxd5 {[%clk 0:01:41]} 26. Kg2 {[%clk 0:00:15]}  a5 {[%clk 0:01:39]} 27. Ra4 {[%clk 0:00:15]}  Bc3 {[%clk 0:01:36]} 28. Rc4 {[%clk 0:00:13]}  Bf6 {[%clk 0:01:34]} 29. Rc7 {[%clk 0:00:12]}  Kg7 {[%clk 0:01:33]} 30. Ra7 {[%clk 0:00:12]}  Bc3 {[%clk 0:01:33]} 31. Rxe7 {[%clk 0:00:10]}  Bb4 {[%clk 0:01:31]} 32. Rb7 {[%clk 0:00:10]}  Kg6 {[%clk 0:01:30]} 33. a4 {[%clk 0:00:09]}  f6 {[%clk 0:01:29]} 34. Rb5 {[%clk 0:00:09]}  Rd6 {[%clk 0:01:27]} 35. Bc5 {[%clk 0:00:09]}  Bxc5 {[%clk 0:01:09]} 36. Rxc5 {[%clk 0:00:10]}  Rb6 {[%clk 0:01:09]} 37. Rxa5 {[%clk 0:00:10]}  Rxb3 {[%clk 0:01:10]} 38. Ra6 {[%clk 0:00:08]}  Ra3 {[%clk 0:01:10]} 39. e3 {[%clk 0:00:08]}  Kf5 {[%clk 0:01:09]} 40. h3 {[%clk 0:00:09]}  h5 {[%clk 0:01:08]} 41. Ra8 {[%clk 0:00:08]}  Ke6 {[%clk 0:01:05]} 42. a5 {[%clk 0:00:08]}  Ke7 {[%clk 0:01:01]} 43. a6 {[%clk 0:00:08]}  Kd7 {[%clk 0:01:01]} 44. Kf3 {[%clk 0:00:09]}  Kc7 {[%clk 0:01:00]} 45. a7 {[%clk 0:00:05]}  Kb7 {[%clk 0:00:52]} 46. Rf8 {[%clk 0:00:04]}  Kxa7 {[%clk 0:00:50]} 47. Rxf6 {[%clk 0:00:04]}  Ra5 {[%clk 0:00:50]} 48. e4 {[%clk 0:00:03]}  Kb7 {[%clk 0:00:51]} 49. Rf5 {[%clk 0:00:03]}  Ra3+ {[%clk 0:00:46]} 50. Kg2 {[%clk 0:00:04]}  Ra4 {[%clk 0:00:41]} 51. Rxg5 {[%clk 0:00:03]}  Rxe4 {[%clk 0:00:40]} 52. Rxh5 {[%clk 0:00:04]}  Kc7 {[%clk 0:00:40]} 53. Rh7+ {[%clk 0:00:04]}  Kd6 {[%clk 0:00:40]} 54. Rh6+ {[%clk 0:00:05]}  Ke7 {[%clk 0:00:40]} 55. Rh4 {[%clk 0:00:06]}  Re6 {[%clk 0:00:39]} 56. Rf4 {[%clk 0:00:06]}  Re1 {[%clk 0:00:36]} 57. h4 {[%clk 0:00:07]}  Re6 {[%clk 0:00:34]} 58. Kf3 {[%clk 0:00:08]}  Rh6 {[%clk 0:00:32]} 59. Re4+ {[%clk 0:00:08]}  Kf7 {[%clk 0:00:32]} 60. Rf4+ {[%clk 0:00:09]}  Kg7 {[%clk 0:00:31]} 61. Kg4 {[%clk 0:00:10]}  Rb6 {[%clk 0:00:28]} 62. Kh3 {[%clk 0:00:10]}  Rc6 {[%clk 0:00:26]} 63. h5 {[%clk 0:00:09]}  Kh6 {[%clk 0:00:24]} 64. Kh4 {[%clk 0:00:10]}  Kh7 {[%clk 0:00:23]} 65. g4 {[%clk 0:00:10]}  Kg7 {[%clk 0:00:20]} 66. g5 {[%clk 0:00:11]}  Kh7 {[%clk 0:00:20]} 67. Kg4 {[%clk 0:00:11]}  Kg7 {[%clk 0:00:18]} 68. f3 {[%clk 0:00:12]}  Rd6 {[%clk 0:00:16]} 69. Rf6 {[%clk 0:00:12]}  Rd5 {[%clk 0:00:10]} 70. f4 {[%clk 0:00:11]}  Rc5 {[%clk 0:00:09]} 71. Rd6 {[%clk 0:00:10]}  Rd5 {[%clk 0:00:08]} 72. Rxd5 {[%clk 0:00:05]} 1-0


[Site "https://www.chess.com"]

[Event "Titled Tuesday Blitz June 28 Late 2022"]
[White "Tologon tegin, Semetei"]
[Black "Diaz Rosas, Julio Cesar"]
[WhiteFideId "13800574"]
[BlackFideId "5105099"]
[WhiteElo "2174"]
[BlackElo "2278"]
[Result "1-0"]
[Round "10"]
[TimeControl "180+1"]
[Date "2022.06.28"]
[WhiteClock "0:00:09"]
[BlackClock "0:00:02"]

1. Nf3 {[%clk 0:03:00]}  d5 {[%clk 0:02:59]} 2. g3 {[%clk 0:03:01]}  e6 {[%clk 0:02:59]} 3. Bg2 {[%clk 0:03:02]}  Nf6 {[%clk 0:02:59]} 4. O-O {[%clk 0:03:03]}  Be7 {[%clk 0:03:00]} 5. b3 {[%clk 0:03:03]}  O-O {[%clk 0:03:01]} 6. Bb2 {[%clk 0:03:03]}  a5 {[%clk 0:03:01]} 7. a4 {[%clk 0:02:52]}  c5 {[%clk 0:02:57]} 8. d3 {[%clk 0:02:52]}  Nc6 {[%clk 0:02:54]} 9. Nbd2 {[%clk 0:02:52]}  d4 {[%clk 0:02:53]} 10. Nc4 {[%clk 0:02:49]}  Nd5 {[%clk 0:02:51]} 11. e3 {[%clk 0:02:47]}  Bf6 {[%clk 0:02:43]} 12. exd4 {[%clk 0:02:18]}  cxd4 {[%clk 0:02:39]} 13. Re1 {[%clk 0:02:16]}  Nc3 {[%clk 0:02:32]} 14. Bxc3 {[%clk 0:02:14]}  dxc3 {[%clk 0:02:33]} 15. Nfe5 {[%clk 0:02:13]}  Nxe5 {[%clk 0:02:28]} 16. Nxe5 {[%clk 0:02:13]}  Qc7 {[%clk 0:02:26]} 17. Qe2 {[%clk 0:02:11]}  Rb8 {[%clk 0:02:12]} 18. Rad1 {[%clk 0:02:09]}  b6 {[%clk 0:02:09]} 19. d4 {[%clk 0:01:59]}  Bb7 {[%clk 0:02:07]} 20. Bxb7 {[%clk 0:01:56]}  Rxb7 {[%clk 0:02:05]} 21. Rd3 {[%clk 0:01:50]}  Rd8 {[%clk 0:01:57]} 22. Qf3 {[%clk 0:01:45]}  b5 {[%clk 0:01:55]} 23. Rxc3 {[%clk 0:01:43]}  Qb6 {[%clk 0:01:47]} 24. axb5 {[%clk 0:01:26]}  Qxb5 {[%clk 0:01:41]} 25. Nc6 {[%clk 0:01:15]}  Re8 {[%clk 0:01:22]} 26. Rc5 {[%clk 0:01:12]}  Qb6 {[%clk 0:01:15]} 27. c3 {[%clk 0:01:00]}  Rc7 {[%clk 0:01:05]} 28. Ra1 {[%clk 0:00:47]}  Rec8 {[%clk 0:00:56]} 29. Nxa5 {[%clk 0:00:43]}  Rxc5 {[%clk 0:00:52]} 30. dxc5 {[%clk 0:00:43]}  Qxc5 {[%clk 0:00:51]} 31. Nc4 {[%clk 0:00:43]}  h6 {[%clk 0:00:37]} 32. Ra8 {[%clk 0:00:40]}  Kh7 {[%clk 0:00:34]} 33. Qe4+ {[%clk 0:00:37]}  g6 {[%clk 0:00:33]} 34. Rxc8 {[%clk 0:00:35]}  Qxc8 {[%clk 0:00:34]} 35. Qf3 {[%clk 0:00:33]}  Kg7 {[%clk 0:00:29]} 36. Nd6 {[%clk 0:00:30]}  Qb8 {[%clk 0:00:18]} 37. Ne4 {[%clk 0:00:25]}  Be5 {[%clk 0:00:18]} 38. c4 {[%clk 0:00:23]}  Qb4 {[%clk 0:00:18]} 39. Qd3 {[%clk 0:00:20]}  g5 {[%clk 0:00:14]} 40. h3 {[%clk 0:00:20]}  Qb6 {[%clk 0:00:10]} 41. Kg2 {[%clk 0:00:20]}  Qa5 {[%clk 0:00:10]} 42. Nd2 {[%clk 0:00:20]}  Qa2 {[%clk 0:00:09]} 43. Nf3 {[%clk 0:00:19]}  Bf6 {[%clk 0:00:08]} 44. b4 {[%clk 0:00:20]}  Qb2 {[%clk 0:00:07]} 45. b5 {[%clk 0:00:20]}  Kg8 {[%clk 0:00:07]} 46. c5 {[%clk 0:00:20]}  Be7 {[%clk 0:00:06]} 47. Qc4 {[%clk 0:00:12]}  e5 {[%clk 0:00:04]} 48. c6 {[%clk 0:00:11]}  Bd6 {[%clk 0:00:04]} 49. c7 {[%clk 0:00:09]}  Bxc7 {[%clk 0:00:04]} 50. Qxc7 {[%clk 0:00:10]}  Qxb5 {[%clk 0:00:05]} 51. Qxe5 {[%clk 0:00:11]}  Qc6 {[%clk 0:00:05]} 52. Qf5 {[%clk 0:00:10]}  Kg7 {[%clk 0:00:05]} 53. Qd3 {[%clk 0:00:09]}  Qb7 {[%clk 0:00:04]} 54. Kh2 {[%clk 0:00:10]}  Kg8 {[%clk 0:00:04]} 55. Ne5 {[%clk 0:00:09]}  Qc7 {[%clk 0:00:04]} 56. Qf5 {[%clk 0:00:09]}  Kg7 {[%clk 0:00:03]} 57. Ng4 {[%clk 0:00:09]}  Qc6 {[%clk 0:00:03]} 58. Qe5+ {[%clk 0:00:09]}  Kg8 {[%clk 0:00:04]} 59. Nf6+ {[%clk 0:00:09]}  Kf8 {[%clk 0:00:04]} 60. Nh7+ {[%clk 0:00:09]}  Kg8 {[%clk 0:00:04]} 61. Nf6+ {[%clk 0:00:09]}  Kf8 {[%clk 0:00:05]} 62. Nd5 {[%clk 0:00:10]}  Qa6 {[%clk 0:00:02]} 63. Qh8# {[%clk 0:00:09]} 1-0


[Site "https://www.chess.com"]

[Event "Titled Tuesday Blitz June 28 Late 2022"]
[White "Yuan, Qingyu"]
[Black "Popilski, Gil"]
[WhiteFideId "8609772"]
[BlackFideId "2809060"]
[WhiteElo "2359"]
[BlackElo "2537"]
[Result "1-0"]
[Round "10"]
[TimeControl "180+1"]
[Date "2022.06.28"]
[WhiteClock "0:00:06"]
[BlackClock "0:00:03"]

1. e4 {[%clk 0:03:00]}  c5 {[%clk 0:02:59]} 2. Nf3 {[%clk 0:03:00]}  d6 {[%clk 0:02:59]} 3. Bb5+ {[%clk 0:03:01]}  Nd7 {[%clk 0:02:55]} 4. c4 {[%clk 0:03:01]}  Nf6 {[%clk 0:02:55]} 5. Nc3 {[%clk 0:03:01]}  g6 {[%clk 0:02:54]} 6. h3 {[%clk 0:02:57]}  Bg7 {[%clk 0:02:53]} 7. d3 {[%clk 0:02:57]}  O-O {[%clk 0:02:53]} 8. Ba4 {[%clk 0:02:58]}  b6 {[%clk 0:02:48]} 9. O-O {[%clk 0:02:52]}  Bb7 {[%clk 0:02:48]} 10. Bf4 {[%clk 0:02:50]}  Ne8 {[%clk 0:02:34]} 11. Qd2 {[%clk 0:02:46]}  Nc7 {[%clk 0:02:32]} 12. a3 {[%clk 0:02:37]}  Ne6 {[%clk 0:02:32]} 13. Bh6 {[%clk 0:02:38]}  f5 {[%clk 0:02:27]} 14. Bxg7 {[%clk 0:02:17]}  Kxg7 {[%clk 0:02:27]} 15. Rae1 {[%clk 0:02:10]}  fxe4 {[%clk 0:02:11]} 16. Nxe4 {[%clk 0:01:51]}  Rxf3 {[%clk 0:02:09]} 17. Bxd7 {[%clk 0:01:43]}  Qxd7 {[%clk 0:02:07]} 18. gxf3 {[%clk 0:01:43]}  Nd4 {[%clk 0:02:07]} 19. Kg2 {[%clk 0:01:26]}  Rf8 {[%clk 0:02:05]} 20. Re3 {[%clk 0:01:18]}  Qf5 {[%clk 0:01:55]} 21. Qd1 {[%clk 0:00:55]}  Bc8 {[%clk 0:00:42]} 22. Rh1 {[%clk 0:00:54]}  Ne6 {[%clk 0:00:38]} 23. h4 {[%clk 0:00:47]}  Nf4+ {[%clk 0:00:36]} 24. Kf1 {[%clk 0:00:47]}  Kh8 {[%clk 0:00:31]} 25. Qd2 {[%clk 0:00:41]}  Qe5 {[%clk 0:00:23]} 26. Qc3 {[%clk 0:00:40]}  Qxc3 {[%clk 0:00:19]} 27. bxc3 {[%clk 0:00:35]}  Ba6 {[%clk 0:00:17]} 28. Nd2 {[%clk 0:00:20]}  e5 {[%clk 0:00:16]} 29. Ke1 {[%clk 0:00:19]}  Ng2+ {[%clk 0:00:15]} 30. Ke2 {[%clk 0:00:19]}  Nxe3 {[%clk 0:00:16]} 31. fxe3 {[%clk 0:00:19]}  Bb7 {[%clk 0:00:16]} 32. Rg1 {[%clk 0:00:16]}  Bc6 {[%clk 0:00:16]} 33. Rg3 {[%clk 0:00:16]}  Rf5 {[%clk 0:00:15]} 34. Rg5 {[%clk 0:00:14]}  Kg7 {[%clk 0:00:14]} 35. Rxf5 {[%clk 0:00:13]}  gxf5 {[%clk 0:00:15]} 36. f4 {[%clk 0:00:14]}  Kg6 {[%clk 0:00:15]} 37. Kf2 {[%clk 0:00:14]}  Kh5 {[%clk 0:00:15]} 38. Kg3 {[%clk 0:00:15]}  h6 {[%clk 0:00:12]} 39. Nf1 {[%clk 0:00:10]}  e4 {[%clk 0:00:12]} 40. d4 {[%clk 0:00:09]}  Ba4 {[%clk 0:00:11]} 41. Kh3 {[%clk 0:00:08]}  Bd1 {[%clk 0:00:10]} 42. Ng3+ {[%clk 0:00:07]}  Kg6 {[%clk 0:00:10]} 43. Nf1 {[%clk 0:00:07]}  Be2 {[%clk 0:00:10]} 44. Nd2 {[%clk 0:00:08]}  Kh5 {[%clk 0:00:10]} 45. Kg3 {[%clk 0:00:08]}  a5 {[%clk 0:00:08]} 46. Kh3 {[%clk 0:00:06]}  a4 {[%clk 0:00:08]} 47. Kg3 {[%clk 0:00:07]}  Kg6 {[%clk 0:00:06]} 48. Kh3 {[%clk 0:00:07]}  Kf6 {[%clk 0:00:06]} 49. Kg3 {[%clk 0:00:07]}  Ke6 {[%clk 0:00:06]} 50. Kf2 {[%clk 0:00:08]}  Bd3 {[%clk 0:00:06]} 51. Kg3 {[%clk 0:00:08]}  h5 {[%clk 0:00:06]} 52. Kf2 {[%clk 0:00:09]}  Kd7 {[%clk 0:00:07]} 53. Ke1 {[%clk 0:00:09]}  Kc6 {[%clk 0:00:07]} 54. Kd1 {[%clk 0:00:07]}  d5 {[%clk 0:00:07]} 55. cxd5+ {[%clk 0:00:07]}  Kxd5 {[%clk 0:00:08]} 56. Kc1 {[%clk 0:00:07]}  b5 {[%clk 0:00:06]} 57. Kb2 {[%clk 0:00:07]}  cxd4 {[%clk 0:00:04]} 58. cxd4 {[%clk 0:00:07]}  b4 {[%clk 0:00:04]} 59. axb4 {[%clk 0:00:06]}  Kc6 {[%clk 0:00:05]} 60. Nb1 {[%clk 0:00:03]}  Bxb1 {[%clk 0:00:05]} 61. Kxb1 {[%clk 0:00:04]}  Kb5 {[%clk 0:00:05]} 62. d5 {[%clk 0:00:04]}  Kb6 {[%clk 0:00:03]} 63. Kb2 {[%clk 0:00:04]}  Kc7 {[%clk 0:00:03]} 64. b5 {[%clk 0:00:05]}  Kd6 {[%clk 0:00:04]} 65. b6 {[%clk 0:00:05]}  Kxd5 {[%clk 0:00:04]} 66. b7 {[%clk 0:00:06]}  a3+ {[%clk 0:00:03]} 67. Kxa3 {[%clk 0:00:06]} 1-0


[Site "https://www.chess.com"]

[Event "Titled Tuesday Blitz June 28 Late 2022"]
[White "Bjelobrk, Igor"]
[Black "Ibarra Jerez, Jose Carlos"]
[WhiteFideId "4300726"]
[BlackFideId "2226332"]
[WhiteElo "2644"]
[BlackElo "2903"]
[Result "1-0"]
[Round "11"]
[TimeControl "180+1"]
[Date "2022.06.28"]
[WhiteClock "0:00:25"]
[BlackClock "0:00:03"]

1. Nf3 {[%clk 0:02:45]}  d5 {[%clk 0:02:59]} 2. c4 {[%clk 0:02:45]}  d4 {[%clk 0:02:57]} 3. g3 {[%clk 0:02:44]}  Nc6 {[%clk 0:02:57]} 4. b4 {[%clk 0:02:41]}  Nxb4 {[%clk 0:02:55]} 5. Qa4+ {[%clk 0:02:36]}  Nc6 {[%clk 0:02:55]} 6. Ne5 {[%clk 0:02:34]}  Bd7 {[%clk 0:02:53]} 7. Nxd7 {[%clk 0:02:32]}  Qxd7 {[%clk 0:02:53]} 8. Na3 {[%clk 0:02:22]}  e5 {[%clk 0:02:53]} 9. Rb1 {[%clk 0:02:19]}  Nd8 {[%clk 0:02:43]} 10. Qa5 {[%clk 0:02:03]}  c5 {[%clk 0:02:20]} 11. Bg2 {[%clk 0:01:53]}  Nf6 {[%clk 0:02:05]} 12. d3 {[%clk 0:01:50]}  Bd6 {[%clk 0:02:01]} 13. O-O {[%clk 0:01:48]}  O-O {[%clk 0:01:57]} 14. Nb5 {[%clk 0:01:44]}  Nc6 {[%clk 0:01:38]} 15. Qa4 {[%clk 0:01:43]}  Bb8 {[%clk 0:01:35]} 16. Bg5 {[%clk 0:01:34]}  Ne8 {[%clk 0:01:30]} 17. Rb3 {[%clk 0:01:33]}  a6 {[%clk 0:01:23]} 18. Rfb1 {[%clk 0:01:29]}  h6 {[%clk 0:01:15]} 19. Bd2 {[%clk 0:01:27]}  e4 {[%clk 0:00:55]} 20. Bxe4 {[%clk 0:01:23]}  Ne5 {[%clk 0:00:56]} 21. Qa3 {[%clk 0:01:16]}  Nf6 {[%clk 0:00:38]} 22. Bg2 {[%clk 0:01:15]}  Qf5 {[%clk 0:00:37]} 23. Bxb7 {[%clk 0:01:10]}  axb5 {[%clk 0:00:29]} 24. Bxa8 {[%clk 0:01:03]}  b4 {[%clk 0:00:29]} 25. Qc1 {[%clk 0:00:56]}  Neg4 {[%clk 0:00:30]} 26. Qf1 {[%clk 0:00:54]}  Bxg3 {[%clk 0:00:30]} 27. hxg3 {[%clk 0:00:51]}  Rxa8 {[%clk 0:00:29]} 28. a3 {[%clk 0:00:50]}  bxa3 {[%clk 0:00:26]} 29. Ra1 {[%clk 0:00:51]}  Qh5 {[%clk 0:00:24]} 30. Qg2 {[%clk 0:00:50]}  Re8 {[%clk 0:00:17]} 31. Re1 {[%clk 0:00:36]}  a2 {[%clk 0:00:15]} 32. Ra3 {[%clk 0:00:36]}  Kh7 {[%clk 0:00:11]} 33. Rxa2 {[%clk 0:00:36]}  Re5 {[%clk 0:00:10]} 34. Ra7 {[%clk 0:00:34]}  Qg6 {[%clk 0:00:10]} 35. Bf4 {[%clk 0:00:32]}  Rh5 {[%clk 0:00:10]} 36. Qb7 {[%clk 0:00:28]}  Qf5 {[%clk 0:00:05]} 37. Qxf7 {[%clk 0:00:26]}  Rh1+ {[%clk 0:00:05]} 38. Kxh1 {[%clk 0:00:26]}  Qh5+ {[%clk 0:00:02]} 39. Qxh5 {[%clk 0:00:25]}  Nxh5 {[%clk 0:00:03]} 40. Kg2 {[%clk 0:00:25]} 1-0


[Site "https://www.chess.com"]

[Event "Titled Tuesday Blitz June 28 Late 2022"]
[White "Brodowski, Piotr"]
[Black "Petrovic, Aleksa"]
[WhiteFideId "1124480"]
[BlackFideId "967629"]
[WhiteElo "2589"]
[BlackElo "2499"]
[Result "1-0"]
[Round "11"]
[TimeControl "180+1"]
[Date "2022.06.28"]
[WhiteClock "0:00:52"]
[BlackClock "0:00:02"]

1. f4 {[%clk 0:03:00]}  d5 {[%clk 0:02:54]} 2. Kf2 {[%clk 0:03:00]}  Nc6 {[%clk 0:02:45]} 3. d3 {[%clk 0:02:53]}  e5 {[%clk 0:02:44]} 4. fxe5 {[%clk 0:02:51]}  Nxe5 {[%clk 0:02:41]} 5. h3 {[%clk 0:02:51]}  Bc5+ {[%clk 0:02:26]} 6. e3 {[%clk 0:02:45]}  d4 {[%clk 0:02:04]} 7. e4 {[%clk 0:02:43]}  f5 {[%clk 0:02:02]} 8. Nd2 {[%clk 0:02:42]}  Qh4+ {[%clk 0:01:55]} 9. g3 {[%clk 0:02:41]}  Qf6 {[%clk 0:01:50]} 10. Ngf3 {[%clk 0:02:36]}  Nxf3 {[%clk 0:01:39]} 11. Kxf3 {[%clk 0:02:34]}  fxe4+ {[%clk 0:01:37]} 12. Kg2 {[%clk 0:02:34]}  e3 {[%clk 0:01:33]} 13. Ne4 {[%clk 0:02:33]}  Qe7 {[%clk 0:01:28]} 14. Qh5+ {[%clk 0:02:33]}  Qf7 {[%clk 0:00:50]} 15. Qxc5 {[%clk 0:02:23]}  Nf6 {[%clk 0:00:41]} 16. Qxd4 {[%clk 0:02:23]}  Nxe4 {[%clk 0:00:35]} 17. Qxe4+ {[%clk 0:02:23]}  Be6 {[%clk 0:00:35]} 18. Bxe3 {[%clk 0:02:20]}  O-O-O {[%clk 0:00:33]} 19. Kh2 {[%clk 0:02:14]}  Bd5 {[%clk 0:00:30]} 20. Qg4+ {[%clk 0:02:12]}  Kb8 {[%clk 0:00:26]} 21. Bg2 {[%clk 0:02:12]}  Rhe8 {[%clk 0:00:21]} 22. Rae1 {[%clk 0:02:11]}  Bxg2 {[%clk 0:00:19]} 23. Kxg2 {[%clk 0:02:10]}  Qxa2 {[%clk 0:00:20]} 24. Bc1 {[%clk 0:01:36]}  Qd5+ {[%clk 0:00:17]} 25. Qf3 {[%clk 0:01:36]}  Qc5 {[%clk 0:00:14]} 26. Qf2 {[%clk 0:01:33]}  Qc6+ {[%clk 0:00:13]} 27. Kh2 {[%clk 0:01:33]}  Rf8 {[%clk 0:00:14]} 28. Qg2 {[%clk 0:01:33]}  Qc5 {[%clk 0:00:13]} 29. Rhf1 {[%clk 0:01:32]}  a5 {[%clk 0:00:11]} 30. Rxf8 {[%clk 0:01:27]}  Rxf8 {[%clk 0:00:11]} 31. Bf4 {[%clk 0:01:27]}  g5 {[%clk 0:00:09]} 32. Be3 {[%clk 0:01:25]}  Qd6 {[%clk 0:00:08]} 33. Rf1 {[%clk 0:01:25]}  Re8 {[%clk 0:00:08]} 34. Qf3 {[%clk 0:01:24]}  h5 {[%clk 0:00:07]} 35. c3 {[%clk 0:01:22]}  g4 {[%clk 0:00:05]} 36. Qf2 {[%clk 0:01:12]}  h4 {[%clk 0:00:04]} 37. Bf4 {[%clk 0:01:09]}  hxg3+ {[%clk 0:00:04]} 38. Bxg3 {[%clk 0:01:09]}  Qxd3 {[%clk 0:00:04]} 39. Re1 {[%clk 0:00:51]}  Rxe1 {[%clk 0:00:04]} 40. Qxe1 {[%clk 0:00:52]}  Qc2+ {[%clk 0:00:03]} 41. Bf2 {[%clk 0:00:52]}  gxh3 {[%clk 0:00:02]} 42. Qe8# {[%clk 0:00:52]} 1-0


[Site "https://www.chess.com"]